bitfinex/quotes_SOLUSD_20250624
["timestamp","ask_amount","ask_price","bid_price","bid_amount"]
[1750762865742,38.18,144.18,144.17,18.64964886]
[1750762865950,28.18,144.18,144.17,18.64964886]
[1750762866162,28.18,144.18,144.17,24.31933689]
[1750762866449,10.0,144.19,144.17,24.31933689]
[1750762866837,38.18,144.2,144.18,31.25511161]
[1750762867038,28.18,144.2,144.19,24.31933689]
[1750762867238,10.0,144.2,144.19,24.31933689]
[1750762868942,10.0,144.2,144.19,25.58494256]
[1750762869429,15.66968803,144.2,144.19,25.58494256]
[1750762869753,20.85039873,144.2,144.19,31.56494256]
[1750762870433,20.8508261,144.2,144.19,31.56494256]
[1750762870857,26.03502623,144.2,144.19,31.56494256]
[1750762871460,15.18113807,144.2,144.19,31.56494256]
[1750762871841,43.36113807,144.2,144.19,31.56494256]
[1750762873244,43.36508606,144.2,144.19,31.56494256]
[1750762873420,10.0,144.2,144.19,31.56494256]
[1750762873845,28.18,144.21,144.19,31.56494256]
[1750762874024,10.0,144.2,144.19,37.23463059]
[1750762875350,10.0,144.2,144.19,31.56494256]
[1750762875664,20.85408583,144.2,144.19,31.56494256]
[1750762875868,15.1843978,144.2,144.19,31.56494256]
[1750762876159,20.85427807,144.2,144.19,31.56494256]
[1750762876551,15.18461532,144.2,144.19,31.56494256]
[1750762878757,10.0,144.2,144.19,31.56494256]
[1750762878957,15.18428832,144.2,144.19,31.56494256]
[1750762880655,15.18427457,144.2,144.19,31.56494256]
[1750762881746,15.18434831,144.2,144.19,31.56494256]
[1750762882642,20.85403634,144.2,144.19,31.56494256]
[1750762882845,15.18434831,144.2,144.19,31.56494256]
[1750762883052,20.85403634,144.2,144.19,31.56494256]
[1750762888863,10.0,144.2,144.19,31.56494256]
[1750762889166,15.66968803,144.2,144.19,31.56494256]
[1750762890872,20.85356963,144.2,144.19,12.9152937]
[1750762892348,20.85356963,144.2,144.19,5.98]
[1750762892953,27.04546963,144.2,144.19,24.62964886]
[1750762894273,32.23021425,144.2,144.19,24.62964886]
[1750762895262,32.23225099,144.2,144.19,24.62964886]
[1750762895461,26.56256296,144.2,144.19,24.62964886]
[1750762895779,32.23225099,144.2,144.19,24.62964886]
[1750762896075,26.04035099,144.2,144.19,31.56494256]
[1750762897678,43.36678136,144.2,144.19,31.56494256]
[1750762898182,43.3684333,144.2,144.19,31.56494256]
[1750762898772,15.1884333,144.2,144.19,31.56494256]
[1750762898975,43.3684333,144.2,144.19,31.56494256]
[1750762899176,15.1884333,144.2,144.19,31.56494256]
[1750762899889,38.18,144.2,144.19,31.56494256]
[1750762901184,43.3685814,144.2,144.19,31.56494256]
[1750762907188,38.18,144.2,144.19,31.56494256]
[1750762907384,43.37017843,144.2,144.19,31.56494256]
[1750762908772,49.03986646,144.2,144.19,31.56494256]
[1750762909596,49.03994282,144.2,144.19,31.56494256]
[1750762909892,55.84930862,144.2,144.19,24.62964886]
[1750762910194,10.0,144.17,144.13,17.34469307]
[1750762910490,15.66968803,144.14,144.13,18.64964886]
[1750762910799,43.37025479,144.14,144.13,31.56782966]
[1750762911464,43.37025479,144.14,144.13,25.58782966]
[1750762911668,43.37025479,144.14,144.13,31.56782966]
[1750762911868,38.18,144.14,144.13,31.56782966]
[1750762912370,43.36885612,144.14,144.13,31.56782966]
[1750762913813,38.18,144.14,144.13,31.56782966]
[1750762915170,43.84968803,144.14,144.13,31.56782966]
[1750762915384,49.03587457,144.14,144.13,31.56782966]
[1750762915805,43.84968803,144.14,144.13,31.56782966]
[1750762919303,38.18,144.14,144.13,31.56782966]
[1750762919534,43.84968803,144.14,144.13,31.56782966]
[1750762920700,49.02971276,144.14,144.13,31.56782966]
[1750762921193,54.2116737,144.14,144.13,31.56782966]
[1750762921601,49.02995328,144.14,144.13,31.56782966]
[1750762921798,49.03015135,144.14,144.13,31.56782966]
[1750762923511,43.84968803,144.14,144.13,31.56782966]
[1750762923695,49.02679142,144.14,144.13,31.56782966]
[1750762926397,49.02456181,144.14,144.13,31.56782966]
[1750762927109,43.84968803,144.14,144.13,31.56782966]
[1750762928620,49.02464354,144.14,144.13,31.56782966]
[1750762928788,49.0225934,144.14,144.13,31.56782966]
[1750762931714,43.84968803,144.14,144.13,31.56782966]
[1750762932393,10.0,144.14,144.13,31.56782966]
[1750762932600,38.18,144.14,144.13,31.56782966]
[1750762934711,43.84968803,144.14,144.13,31.56782966]
[1750762942043,49.01732133,144.14,144.13,31.56782966]
[1750762946932,43.84968803,144.14,144.13,31.56782966]
[1750762947233,49.01926369,144.14,144.13,31.56782966]
[1750762948542,38.18,144.14,144.13,31.56782966]
[1750762950036,10.0,144.14,144.13,31.56782966]
[1750762950242,38.18,144.14,144.13,31.56782966]
[1750762954447,10.0,144.15,144.14,18.64964886]
[1750762954630,10.0,144.16,144.14,24.31933689]
[1750762954828,10.0,144.17,144.16,18.64964886]
[1750762955015,43.37078636,144.17,144.16,24.31933689]
[1750762955336,38.18,144.19,144.16,24.31933689]
[1750762955541,5.18727341,144.18,144.14,18.64964886]
[1750762955723,5.18727341,144.18,144.13,71.10063686]
[1750762955724,10.0,144.2,144.19,18.64964886]
[1750762955925,10.0,144.2,144.19,24.62964886]
[1750762956125,5.18818808,144.22,144.21,18.64964886]
[1750762956444,5.18579799,144.22,144.21,24.31933689]
[1750762956741,15.18569256,144.22,144.21,24.31933689]
[1750762957065,10.0,144.22,144.21,24.31933689]
[1750762958241,10.0,144.22,144.21,31.25366876]
[1750762959251,28.18,144.23,144.21,31.25366876]
[1750762959428,10.0,144.22,144.21,25.58398073]
[1750762959624,10.0,144.22,144.21,31.25366876]
[1750762960147,10.0,144.22,144.21,25.58398073]
[1750762968057,15.66968803,144.22,144.21,25.58398073]
[1750762977152,10.0,144.22,144.21,25.58398073]
[1750762977463,15.66968803,144.22,144.21,25.58398073]
[1750762978346,43.82968803,144.22,144.21,25.58398073]
[1750762981069,38.16,144.22,144.21,25.58398073]
[1750762981452,43.82968803,144.22,144.21,25.58398073]
[1750762988252,38.16,144.22,144.21,25.58398073]
[1750762988453,43.82968803,144.22,144.21,25.58398073]
[1750762988957,48.99864498,144.22,144.21,25.58398073]
[1750762989670,48.99865519,144.22,144.21,25.58398073]
[1750762990670,38.16,144.22,144.21,25.58398073]
[1750762991467,10.0,144.22,144.21,25.58398073]
[1750762991777,38.16,144.22,144.21,25.58398073]
[1750762993346,10.0,144.22,144.21,25.58398073]
[1750762994647,38.16,144.22,144.21,31.56398073]
[1750762998476,43.34752486,144.22,144.21,31.56398073]
[1750762999050,49.01721289,144.22,144.21,31.56398073]
[1750763000755,48.53822916,144.22,144.21,31.56398073]
[1750763000953,54.20791719,144.22,144.21,31.56398073]
[1750763002489,54.20791719,144.22,144.21,24.62964886]
[1750763002785,54.20791719,144.22,144.21,31.56398073]
[1750763003881,54.21182614,144.22,144.21,31.56398073]
[1750763004054,54.21182614,144.22,144.21,25.58398073]
[1750763004379,54.21243903,144.22,144.21,25.58398073]
[1750763004763,54.21243903,144.22,144.2,12.91465958]
[1750763005082,26.05243903,144.21,144.2,5.98]
[1750763006101,26.05243903,144.21,144.16,18.64964886]
[1750763006102,10.0,144.17,144.16,25.58618547]
[1750763006278,49.02173473,144.17,144.16,18.64964886]
[1750763006474,54.21232789,144.17,144.16,18.64964886]
[1750763006708,49.02028119,144.17,144.16,18.64964886]
[1750763006882,54.21028897,144.17,144.15,78.5204842]
[1750763007197,16.05028897,144.16,144.15,97.17013306]
[1750763007578,26.05028897,144.16,144.15,97.17013306]
[1750763007983,26.04413418,144.16,144.15,91.19013306]
[1750763009707,20.85360507,144.16,144.15,91.19013306]
[1750763012403,15.18391704,144.16,144.15,91.19013306]
[1750763012603,20.84623366,144.16,144.15,91.19013306]
[1750763014210,15.66968803,144.16,144.15,91.19013306]
[1750763014422,20.84580205,144.16,144.15,91.19013306]
[1750763014589,20.84580205,144.16,144.15,25.58670301]
[1750763015513,20.8429511,144.16,144.15,25.58670301]
[1750763016508,20.84292332,144.16,144.15,25.58670301]
[1750763018299,15.66968803,144.16,144.15,25.58670301]
[1750763018501,20.84007828,144.16,144.15,25.58670301]
[1750763019609,15.17039025,144.16,144.15,25.58670301]
[1750763019785,15.66968803,144.16,144.15,25.58670301]
[1750763019987,20.83920859,144.16,144.15,25.58670301]
[1750763020400,15.66968803,144.16,144.15,25.58670301]
[1750763021481,10.0,144.16,144.15,25.58670301]
[1750763022416,10.0,144.18,144.17,25.58590466]
[1750763022590,10.0,144.18,144.17,31.25559269]
[1750763023008,10.0,144.18,144.17,25.58590466]
[1750763025415,38.16,144.18,144.17,25.58590466]
[1750763025792,43.82968803,144.18,144.17,25.58590466]
[1750763026182,38.16,144.18,144.17,25.58590466]
[1750763033189,10.0,144.18,144.17,31.25559269]
[1750763035415,10.0,144.18,144.17,25.58590466]
[1750763044024,10.0,144.18,144.17,31.56590466]
[1750763050924,10.0,144.18,144.17,25.58590466]
[1750763051135,10.0,144.18,144.17,31.56590466]
[1750763051505,15.66968803,144.18,144.17,31.56590466]
[1750763051700,10.0,144.18,144.17,31.56590466]
[1750763057328,15.18427203,144.18,144.17,31.56590466]
[1750763058945,15.18428294,144.18,144.17,31.56590466]
[1750763062136,10.0,144.18,144.17,31.56590466]
[1750763062734,38.16,144.19,144.18,18.64964886]
[1750763062924,5.18956234,144.19,144.18,22.27786191]
[1750763063119,10.0,144.2,144.18,29.21363663]
[1750763063318,15.18955967,144.19,144.18,25.58542358]
[1750763064548,15.18955967,144.19,144.18,31.25279107]
[1750763064844,5.19227315,144.2,144.18,31.25279107]
[1750763065026,43.35158405,144.23,144.22,18.64964886]
[1750763065224,48.5429735,144.23,144.22,24.62964886]
[1750763065638,48.54297383,144.23,144.22,24.62964886]
[1750763066448,38.54297383,144.23,144.22,24.62964886]
[1750763066741,48.54297383,144.23,144.22,24.62964886]
[1750763067119,48.54297383,144.23,144.22,31.56349992]
[1750763067342,43.35138978,144.23,144.22,31.56349992]
[1750763067845,43.35244921,144.23,144.22,31.56349992]
[1750763068251,15.19244921,144.23,144.22,37.23086741]
[1750763071243,10.0,144.23,144.22,37.23086741]
[1750763077532,10.0,144.23,144.22,31.56349992]
[1750763078267,59.005638,144.24,144.22,31.56349992]
[1750763078450,10.0,144.23,144.22,31.56349992]
[1750763080358,59.005638,144.24,144.22,37.23086741]
[1750763080576,49.005638,144.24,144.22,37.23086741]
[1750763080738,59.005638,144.24,144.23,24.31701635]
[1750763080933,30.845638,144.24,144.23,24.31701635]
[1750763082659,30.845638,144.24,144.23,25.58301917]
[1750763083850,20.845638,144.24,144.23,25.58301917]
[1750763084046,30.845638,144.24,144.23,25.58301917]
[1750763088679,20.845638,144.24,144.23,29.20845011]
[1750763089967,30.845638,144.24,144.23,29.20845011]
[1750763092989,30.845638,144.24,144.23,25.58301917]
[1750763099472,41.68434309,144.24,144.23,25.58301917]
[1750763099676,41.68474812,144.24,144.21,5.96]
[1750763099882,10.0,144.17,144.16,6.93673695]
[1750763100067,43.8039392,144.17,144.16,12.89673695]
[1750763100484,43.8039392,144.17,144.16,31.54638581]
[1750763100678,43.8039392,144.17,144.16,12.89673695]
[1750763100884,43.8039392,144.17,144.16,31.54638581]
[1750763101082,43.8039392,144.17,144.16,6.93673695]
[1750763101373,43.8039392,144.17,144.16,12.89673695]
[1750763101798,48.98330331,144.17,144.16,12.89673695]
[1750763102980,48.98330331,144.17,144.16,24.60964886]
[1750763103180,48.49610137,144.17,144.16,24.60964886]
[1750763103496,54.16004057,144.17,144.16,24.60964886]
[1750763103894,54.15372836,144.17,144.16,25.58638581]
[1750763104078,54.15372836,144.17,144.16,18.64964886]
[1750763104279,54.15372836,144.17,144.16,25.58638581]
[1750763104782,48.98067646,144.17,144.16,25.58638581]
[1750763105100,48.97819737,144.17,144.16,25.58638581]
[1750763105733,48.97300075,144.17,144.16,25.58638581]
[1750763105996,48.97300075,144.17,144.14,5.96]
[1750763106211,10.0,144.11,144.1,5.96]
[1750763106376,48.97303037,144.11,144.1,5.96]
[1750763106785,48.97597268,144.11,144.1,5.96]
[1750763108993,48.97597268,144.11,144.1,24.60964886]
[1750763108994,43.8039392,144.11,144.1,24.60964886]
[1750763109196,43.8039392,144.11,144.1,31.54927412]
[1750763109492,43.8039392,144.11,144.1,24.60964886]
[1750763109685,43.8039392,144.11,144.1,18.64964886]
[1750763112215,10.0,144.08,144.07,12.90087957]
[1750763112396,43.8639392,144.08,144.07,31.55052843]
[1750763112597,43.8639392,144.08,144.07,24.60964886]
[1750763113808,49.9970392,144.08,144.07,5.96]
[1750763115189,55.6609784,144.08,144.07,5.96]
[1750763115391,57.2503784,144.08,144.07,5.96]
[1750763116397,51.5864392,144.08,144.07,5.96]
[1750763117203,51.5864392,144.08,144.04,6.94239064]
[1750763117510,5.6639392,144.05,144.04,25.5920395]
[1750763117803,43.8639392,144.05,144.04,25.5920395]
[1750763118005,43.8639392,144.05,144.04,6.94239064]
[1750763118214,10.0,144.04,144.03,25.59250055]
[1750763118398,15.6639392,144.04,144.03,25.59250055]
[1750763127225,10.0,144.04,144.03,25.59250055]
[1750763127421,15.6639392,144.04,144.03,25.59250055]
[1750763127622,10.0,144.04,144.03,31.25643975]
[1750763127927,38.18,144.04,144.03,25.59250055]
[1750763128105,43.8439392,144.04,144.03,25.59250055]
[1750763131509,43.8439392,144.04,144.02,6.0]
[1750763131709,10.0,143.99,143.98,24.64964886]
[1750763131904,38.22,143.99,143.98,24.64964886]
[1750763132911,38.22,143.99,143.98,24.31358806]
[1750763133103,38.22,143.99,143.98,30.31358806]
[1750763133614,38.22,143.99,143.98,37.25899714]
[1750763134728,38.22,143.99,143.98,31.59505794]
[1750763136426,38.22,143.99,143.98,25.59505794]
[1750763136629,43.8839392,143.99,143.98,25.59505794]
[1750763143730,10.0,143.99,143.98,31.25899714]
[1750763143907,38.24,144.02,143.99,18.64964886]
[1750763144116,38.24,144.02,144.01,5.6639392]
[1750763144339,38.24,144.02,144.01,24.31358806]
[1750763144540,38.24,144.02,144.01,18.64964886]
[1750763145233,38.24,144.02,144.01,24.31358806]
[1750763146336,38.24,144.02,144.01,31.25755028]
[1750763146545,38.24,144.02,144.01,25.59361108]
[1750763147406,38.24,144.02,144.01,31.25755028]
[1750763150613,43.39446201,144.02,144.01,31.25755028]
[1750763151533,43.39372835,144.02,144.01,31.25755028]
[1750763152834,28.24,144.03,144.02,18.64964886]
[1750763153012,10.0,144.05,144.02,24.31358806]
[1750763153214,10.0,144.05,144.04,24.31358806]
[1750763153417,10.0,144.05,144.04,31.25610402]
[1750763157127,38.24,144.05,144.04,31.25610402]
[1750763158914,38.24,144.05,144.04,25.59216482]
[1750763161446,38.24,144.05,144.04,31.25610402]
[1750763162247,38.24,144.05,144.04,25.59216482]
[1750763163451,43.9039392,144.05,144.04,25.59216482]
[1750763163650,10.0,144.02,144.01,6.94396222]
[1750763163961,38.24,144.02,144.01,31.59361108]
[1750763164129,38.24,144.02,144.01,37.25755028]
[1750763164330,38.24,144.02,144.01,31.59361108]
[1750763167526,38.24,144.02,144.01,37.25755028]
[1750763168149,38.24,144.02,144.01,31.59361108]
[1750763168335,38.24,144.02,144.01,37.25755028]
[1750763170954,38.24,144.02,144.01,35.73286828]
[1750763172755,10.0,144.02,144.01,35.73286828]
[1750763173139,38.26,144.03,144.02,18.64964886]
[1750763173341,38.26,144.03,144.02,24.31358806]
[1750763174644,38.26,144.03,144.02,31.25706813]
[1750763177260,10.0,144.03,144.02,31.25706813]
[1750763178357,10.0,144.04,144.02,31.25706813]
[1750763178564,10.0,144.04,144.03,24.31358806]
[1750763178940,10.0,144.04,144.03,31.25658604]
[1750763182667,10.0,144.05,144.04,18.64964886]
[1750763182869,38.26,144.05,144.04,24.31358806]
[1750763183064,10.0,144.05,144.04,24.31358806]
[1750763185069,38.26,144.06,144.04,31.25610402]
[1750763185372,10.0,144.06,144.05,24.31358806]
[1750763185572,38.26,144.07,144.05,24.31358806]
[1750763185752,38.26,144.07,144.06,24.31358806]
[1750763186071,38.24,144.07,144.06,24.31358806]
[1750763187474,38.24,144.07,144.06,31.25514019]
[1750763189476,43.42311219,144.07,144.06,31.25514019]
[1750763190760,43.42286195,144.07,144.06,31.25514019]
[1750763192470,38.24,144.07,144.06,31.25514019]
[1750763192857,38.22,144.09,144.06,48.60902051]
[1750763193175,38.22,144.09,144.08,24.31358806]
[1750763193478,38.22,144.09,144.08,31.25417662]
[1750763195899,38.22,144.09,144.08,25.59023742]
[1750763198777,38.22,144.09,144.07,6.02]
[1750763198778,10.0,144.05,144.04,36.00578977]
[1750763199096,10.0,144.05,144.04,48.96830573]
[1750763199097,38.22,144.05,144.04,48.96830573]
[1750763201499,43.40187839,144.05,144.04,6.02]
[1750763201692,43.8839392,144.05,144.04,6.02]
[1750763201883,49.0659236,144.05,144.04,6.02]
[1750763202373,43.8839392,144.05,144.04,6.02]
[1750763202575,49.0659236,144.05,144.04,6.02]
[1750763202775,43.8839392,144.05,144.04,6.02]
[1750763202970,43.4019844,144.05,144.04,31.61216482]
[1750763203168,43.8839392,144.05,144.04,31.61216482]
[1750763203589,49.06521196,144.05,144.04,31.61216482]
[1750763203789,48.58325716,144.05,144.04,31.61216482]
[1750763203984,43.40127276,144.05,144.04,31.61216482]
[1750763205314,38.22,144.05,144.04,37.27610402]
[1750763207901,28.22,144.05,144.04,37.27610402]
[1750763208108,38.22,144.05,144.04,37.27610402]
[1750763209900,38.22,144.05,144.04,31.61216482]
[1750763210930,38.22,144.05,144.04,37.27610402]
[1750763211895,38.22,144.05,144.04,31.61216482]
[1750763212202,38.22,144.05,144.04,37.27610402]
[1750763215204,10.0,144.05,144.04,37.27610402]
[1750763215504,38.26,144.05,144.04,37.27610402]
[1750763216215,43.44858453,144.05,144.04,37.27610402]
[1750763216790,38.26,144.05,144.04,37.27610402]
[1750763222603,10.0,144.05,144.04,37.27610402]
[1750763223013,10.0,144.08,144.05,18.64964886]
[1750763223222,10.0,144.09,144.08,18.64964886]
[1750763223408,43.44974497,144.09,144.08,18.64964886]
[1750763223893,43.44974497,144.09,144.08,5.6639392]
[1750763224785,33.44974497,144.09,144.08,5.6639392]
[1750763225016,43.44974497,144.09,144.08,12.60452776]
[1750763228200,38.26,144.09,144.08,12.60452776]
[1750763228420,43.44767315,144.09,144.08,12.60452776]
[1750763233938,43.44767315,144.09,144.08,31.25417662]
[1750763234143,43.44767315,144.09,144.08,25.59023742]
[1750763236834,43.44709107,144.09,144.08,25.59023742]
[1750763237012,49.11103027,144.09,144.08,25.59023742]
[1750763237213,43.44709107,144.09,144.08,25.59023742]
[1750763238508,43.44709107,144.09,144.08,31.61023742]
[1750763240218,43.44763392,144.09,144.08,31.61023742]
[1750763241031,43.44763392,144.09,144.08,37.27417662]
[1750763242540,38.26,144.09,144.08,37.27417662]
[1750763242741,43.44887555,144.09,144.08,37.27417662]
[1750763243451,43.44887555,144.09,144.08,31.61023742]
[1750763245523,43.44871396,144.09,144.08,31.61023742]
[1750763246342,43.44881071,144.09,144.08,31.61023742]
[1750763246726,15.18881071,144.09,144.08,31.61023742]
[1750763246920,49.07274991,144.09,144.08,24.66964886]
[1750763247124,49.07274991,144.09,144.08,6.02]
[1750763248244,43.8839392,144.09,144.08,6.02]
[1750763248445,49.0737638,144.09,144.08,6.02]
[1750763249244,49.0737638,144.09,144.03,31.61264684]
[1750763249245,10.0,144.04,144.03,31.61264684]
[1750763249551,38.24,144.04,144.03,31.61264684]
[1750763250341,38.24,144.04,144.03,37.27658604]
[1750763250540,38.24,144.04,144.03,31.25658604]
[1750763250734,38.24,144.04,144.03,37.27658604]
[1750763251043,38.24,144.04,144.03,31.61264684]
[1750763251224,43.43342809,144.04,144.03,31.61264684]
[1750763251430,49.09736729,144.04,144.03,25.59264684]
[1750763251854,54.29116115,144.04,144.03,18.64964886]
[1750763252050,54.28823014,144.04,144.02,12.96326224]
[1750763252360,20.85452506,144.03,144.02,31.6129111]
[1750763253262,15.19058586,144.03,144.02,31.6129111]
[1750763254363,15.18756717,144.03,144.02,31.6129111]
[1750763255139,10.0,144.03,144.02,31.6129111]
[1750763255356,15.1875805,144.03,144.02,31.6129111]
[1750763255547,15.18755251,144.03,144.02,31.6129111]
[1750763255750,10.0,144.03,144.02,31.6129111]
[1750763256162,15.18747045,144.03,144.02,31.6129111]
[1750763256465,10.0,144.03,144.02,31.6129111]
[1750763256838,15.6639392,144.03,144.02,31.6129111]
[1750763257393,10.0,143.99,143.98,84.95810382]
[1750763257576,38.24,143.99,143.98,90.97810382]
[1750763257949,38.24,143.99,143.98,92.2595737]
[1750763259177,38.24,143.99,143.98,74.89624236]
[1750763259344,43.4197732,143.99,143.98,74.89624236]
[1750763259755,43.41982602,143.99,143.98,74.89624236]
[1750763261188,38.24,143.99,143.98,74.89624236]
[1750763261472,49.07687995,143.99,143.98,31.61505794]
[1750763261680,43.41294075,143.99,143.98,31.61505794]
[1750763261978,49.07687995,143.99,143.98,31.61505794]
[1750763262472,43.9039392,143.99,143.98,31.61505794]
[1750763262779,49.07779576,143.99,143.98,31.61505794]
[1750763263558,43.9039392,143.99,143.98,31.61505794]
[1750763264461,43.9039392,143.99,143.98,6.02]
[1750763264665,49.07156252,143.99,143.98,6.02]
[1750763265054,43.9039392,143.99,143.98,6.02]
[1750763265951,10.0,143.98,143.97,25.5953425]
[1750763266149,15.6639392,143.98,143.97,25.5953425]
[1750763266573,10.0,143.97,143.96,6.94618563]
[1750763266767,10.0,143.96,143.95,31.59632671]
[1750763268474,15.6639392,143.96,143.95,6.0]
[1750763268870,10.0,143.92,143.91,17.37076408]
[1750763269052,38.26,143.92,143.91,48.96920037]
[1750763271069,38.26,143.92,143.91,54.63313957]
[1750763273078,38.26,143.92,143.91,48.96920037]
[1750763273669,38.26,143.92,143.91,54.63313957]
[1750763274782,38.26,143.92,143.91,48.96920037]
[1750763274984,38.26,143.92,143.91,54.63313957]
[1750763276067,38.26,143.92,143.91,31.59843629]
[1750763276282,10.0,143.89,143.88,25.59966793]
[1750763276586,43.9639392,143.89,143.88,18.64964886]
[1750763276886,43.9639392,143.89,143.88,25.59988516]
[1750763277485,43.9639392,143.89,143.88,18.64964886]
[1750763277882,43.9639392,143.89,143.88,25.59988516]
[1750763281190,10.0,143.86,143.85,24.66964886]
[1750763281404,10.0,143.86,143.81,18.64964886]
[1750763281405,10.0,143.82,143.81,18.64964886]
[1750763281616,10.0,143.8,143.79,6.02]
[1750763281781,44.0039392,143.8,143.75,17.39130368]
[1750763281976,15.6639392,143.77,143.76,6.95603784]
[1750763282290,44.0039392,143.77,143.76,6.95603784]
[1750763283070,10.0,143.76,143.75,25.60617059]
[1750763283282,15.6639392,143.76,143.75,6.95652173]
[1750763283476,15.6639392,143.76,143.75,25.60617059]
[1750763285589,10.0,143.76,143.75,25.60617059]
[1750763285777,10.0,143.76,143.75,31.27010979]
[1750763286770,10.0,143.76,143.75,25.60617059]
[1750763286995,15.6639392,143.76,143.75,25.60617059]
[1750763287988,10.0,143.76,143.75,25.60617059]
[1750763288800,15.6639392,143.76,143.75,25.60617059]
[1750763289397,15.6639392,143.76,143.75,6.95652173]
[1750763289694,15.6639392,143.76,143.74,25.60648512]
[1750763289905,44.0839392,143.75,143.74,6.95683626]
[1750763290272,44.0839392,143.75,143.69,23.41816673]
[1750763290478,10.0,143.7,143.69,49.02724213]
[1750763290800,38.42,143.7,143.69,49.02724213]
[1750763291781,10.0,143.7,143.69,49.02724213]
[1750763291982,28.46,143.7,143.69,54.69118133]
[1750763292780,38.46,143.7,143.69,54.69118133]
[1750763293392,28.46,143.7,143.69,54.69118133]
[1750763293594,38.46,143.7,143.69,54.69118133]
[1750763293909,10.0,143.7,143.69,54.69118133]
[1750763294703,10.0,143.7,143.69,31.6290754]
[1750763295213,15.6639392,143.7,143.69,31.6290754]
[1750763295427,10.0,143.7,143.69,31.6290754]
[1750763298010,15.6639392,143.7,143.69,31.6290754]
[1750763298231,15.6639392,143.7,143.69,24.66964886]
[1750763298380,15.6639392,143.7,143.69,18.64964886]
[1750763298582,10.0,143.67,143.66,18.64964886]
[1750763298799,38.52,143.67,143.66,18.64964886]
[1750763298999,38.52,143.67,143.66,24.31358806]
[1750763299702,38.52,143.67,143.66,31.27446791]
[1750763300015,38.52,143.67,143.66,25.61052871]
[1750763300215,38.52,143.67,143.66,31.27446791]
[1750763303986,10.0,143.68,143.67,18.64964886]
[1750763304181,38.54,143.68,143.67,31.27398341]
[1750763306424,38.56,143.69,143.67,25.61004421]
[1750763306610,38.56,143.69,143.68,24.31358806]
[1750763306801,38.56,143.69,143.68,18.64964886]
[1750763307004,38.56,143.69,143.68,24.31358806]
[1750763308224,38.56,143.69,143.68,31.27349897]
[1750763308797,28.56,143.69,143.68,31.27349897]
[1750763308996,10.0,143.74,143.69,18.64964886]
[1750763309302,10.0,143.74,143.73,24.31358806]
[1750763309514,38.56,143.74,143.73,24.31358806]
[1750763309957,28.56,143.74,143.73,24.31358806]
[1750763310121,38.56,143.74,143.73,24.31358806]
[1750763310625,38.56,143.74,143.73,31.27107779]
[1750763314329,28.56,143.74,143.73,31.27107779]
[1750763314535,10.0,143.75,143.74,18.64964886]
[1750763314701,38.54,143.75,143.74,5.6639392]
[1750763315033,38.54,143.75,143.74,12.6209449]
[1750763315336,38.54,143.76,143.75,18.64964886]
[1750763315515,38.54,143.76,143.75,30.45358806]
[1750763315828,38.54,143.76,143.75,24.78964886]
[1750763317038,44.2039392,143.76,143.75,24.78964886]
[1750763317229,44.2039392,143.76,143.75,6.14]
[1750763317527,50.5026392,143.76,143.75,6.14]
[1750763318409,50.5026392,143.76,143.73,6.95726011]
[1750763318614,5.6639392,143.74,143.73,6.95726011]
[1750763318918,28.56,143.74,143.73,6.95726011]
[1750763319116,34.2239392,143.74,143.73,6.95726011]
[1750763319426,44.2239392,143.74,143.73,6.95726011]
[1750763319812,38.56,143.74,143.73,6.95726011]
[1750763320630,43.71234223,143.74,143.73,6.95726011]
[1750763320924,43.71229223,143.74,143.73,6.95726011]
[1750763321931,49.37623143,143.74,143.73,6.95726011]
[1750763323724,49.37757845,143.74,143.73,6.95726011]
[1750763324425,43.71363925,143.74,143.73,6.95726011]
[1750763327308,43.73308376,143.74,143.73,6.95726011]
[1750763327507,43.73308376,143.74,143.73,25.60690897]
[1750763328614,43.73308376,143.74,143.73,18.64964886]
[1750763328925,49.39702296,143.74,143.73,18.64964886]
[1750763329111,54.57125828,143.74,143.73,18.64964886]
[1750763329509,54.57125828,143.74,143.67,23.06468507]
[1750763329510,10.0,143.68,143.67,23.06468507]
[1750763329728,38.54,143.68,143.67,47.87433393]
[1750763330720,38.54,143.68,143.67,54.83472928]
[1750763335944,38.54,143.68,143.67,49.17079008]
[1750763336244,38.54,143.68,143.67,54.83472928]
[1750763342350,38.54,143.68,143.67,49.17079008]